Cogmind - Beta 11 X6 @@@ ROGUE MODE // 2021.07.20 @ 13:36:12 Player: Salamander Result: Destroyed self via exploding Power Conduit Performance ------------- Evolutions (6) 3000 Regions Visited (9) 1800 Robots Destroyed (131) 655 Value Destroyed (4967) 4967 Prototype IDs (6) 120 Alien Tech Used (0) 0 Bonus (65) 65 TOTAL SCORE: 10607 Bonus ------- High Alert Combat Kills 167 Follower Combat Kills 280 Friendly Fire -382 Cogmind --------- Core Integrity 0/1150 Matter 211/550 Energy 85/100 System Corruption 5% Temperature Cool (27) Movement Core (200) Ox3 Location -4/Factory Parts ------- > --- POWER (1) -------- (None) > --- PROPULSION (6) --- (None) > --- UTILITY (9) ------ Matter Compressor > --- WEAPON (3) ------- Railgun > --- INVENTORY (5) ---- Quantum Capacitor Peak State ------------ > --- POWER ------------ F-cell Engine > --- PROPULSION ------- Armored Medium Treads Heavy Treads Advanced Medium Treads Improved Heavy Treads > --- UTILITY ---------- Cooling System High-capacity Storage Unit Improved Matter Compressor Advanced Visual Processing Unit Experimental Signal Interpreter Improved Targeting Computer Weapon Cycler Improved Light Armor Plating Improved Light Armor Plating > --- WEAPON ----------- Flak Gun Heavy Machine Gun Heavy Machine Gun > --- INVENTORY -------- F-cell Engine Light Treads Advanced Heat Sink Large Storage Unit Matter Compressor Quantum Capacitor Component Analysis Suite Shock Rifle Heavy Laser Heavy Neutron Cannon Heavy Assault Rifle Minigun Gauss Rifle Gauss Rifle Gauss Rifle Heavy Machine Gun Rocket Launcher [Rating: 99] Favorites ----------- Power Light Nuclear Core Engine Improved Ion Engine Power Core Light Nuclear Core Propulsion Light Treads Treads Light Treads Leg Carbon-fiber Leg Utility Improved Targeting Computer Device Weapon Cycler Storage High-capacity Storage Unit Processor Improved Targeting Computer Protection Medium Armor Plating Weapon Minigun Energy Gun EM Pulse Gun Ballistic Gun Minigun Launcher Rocket Launcher Build | -11 -10 -10 -9 -9 -8 -7 -6 -5 -4 ------- Run | Scr Mat Min Mat Min Mat Fac Fac Fac Fac Slots Evolved 12 | . . . 2 . 2 2 2 2 2 Power . | . . . . . . . . . . Propulsion 4 | . . . . . 2 . . 2 . Utility 7 | . . . 2 . . 2 1 . 2 Weapon 1 | . . . . . . . 1 . . Parts Attached 119 | 6 10 11 14 1 19 6 33 2 17 Power 9 | 1 1 2 1 . 2 . 1 1 . Engine 6 | 1 . . 1 . 2 . 1 1 . Core 3 | . 1 2 . . . . . . . Reactor . | . . . . . . . . . . Propulsion 32 | 2 2 2 2 1 10 1 8 1 3 Treads 29 | 2 2 2 2 1 10 1 5 1 3 Leg 3 | . . . . . . . 3 . . Wheel . | . . . . . . . . . . Hover . | . . . . . . . . . . Flight . | . . . . . . . . . . Utility 44 | 1 4 2 9 . 4 4 11 . 9 Device 11 | . 1 . . . 1 3 2 . 4 Storage 7 | 1 1 . 1 . . . 1 . 3 Processor 8 | . . . 5 . . . 1 . 2 Hackware . | . . . . . . . . . . Protection 18 | . 2 2 3 . 3 1 7 . . Artifact . | . . . . . . . . . . Weapon 34 | 2 3 5 2 . 3 1 13 . 5 Energy Gun 1 | . 1 . . . . . . . . Energy Cannon . | . . . . . . . . . . Ballistic Gun 31 | 2 2 5 2 . 2 1 13 . 4 Ballistic Cannon . | . . . . . . . . . . Launcher 2 | . . . . . 1 . . . 1 Special Weapon . | . . . . . . . . . . Impact Weapon . | . . . . . . . . . . Slashing Weapon . | . . . . . . . . . . Piercing Weapon . | . . . . . . . . . . Special Melee Weapon . | . . . . . . . . . . Unidentified Prototypes 4 | . . . . . 1 . . 1 2 Parts Lost 52 | . 3 2 2 . 8 2 20 . 15 Power 3 | . . . . . 2 . 1 . . Propulsion 15 | . . . . . 4 1 7 . 3 Utility 20 | . 1 1 2 . 1 1 8 . 6 Weapon 14 | . 2 1 . . 1 . 4 . 6 Highest Loss Streak 11 | . 1 2 1 . 8 1 11 . 10 Average Slot Usage (%) 95 | . 96 100 97 100 95 96 98 91 63 Engine 5 | . 2 . 8 11 7 7 6 5 3 Core 3 | . 11 14 2 . . . . . . Treads 24 | . 28 28 22 22 33 29 17 8 13 Leg 1 | . . . . . . . 7 17 3 Device 4 | . . . . . . 12 12 11 8 Storage 9 | . 14 14 11 11 9 7 6 5 5 Processor 10 | . . . 17 22 18 7 13 11 9 Protection 11 | . 9 14 12 11 8 13 12 11 7 Ballistic Gun 20 | . 23 28 22 22 17 15 20 17 10 Naked Turns 4 | . . . . . . . . . 4 Heaviest Build 82 | 10 37 38 60 60 63 72 82 56 76 Greatest Support 202 | 40 46 46 46 46 88 82 80 90 202 Greatest Overweight (x) 4 | . . . 1 1 . . 4 1 3 Average Overweight (x) . | . . . . 1 . . . . . Largest Inventory Capacity 20 | 8 15 15 20 20 20 20 20 15 20 Average Capacity 17 | 7 13 15 17 20 20 20 18 15 16 Most Carried 20 | 8 15 15 20 20 20 20 19 15 19 Average Carried 16 | 4 11 14 16 19 19 19 16 15 14 Final Capacity 20 | 8 15 15 20 20 20 20 15 15 5 Final Carried 20 | 8 15 15 20 20 20 18 15 15 2 Class Distribution -------------------- 67% | Mutant 20% | Scavenger-Tank 11% | Scavenger-Mutant Dominant Class ---------------- Mutant | -10/Materials Mutant | -10/Mines Mutant | -9/Materials Mutant | -9/Mines Mutant | -8/Materials Scavenger-Mutant | -7/Factory Scavenger-Tank | -6/Factory Scavenger-Tank | -5/Factory Mutant | -4/Factory Resources | -11 -10 -10 -9 -9 -8 -7 -6 -5 -4 ----------- Run | Scr Mat Min Mat Min Mat Fac Fac Fac Fac Matter Collected 4318 | 265 254 387 456 312 614 356 1285 . 389 Remotely 542 | . . . . . 226 . 316 . . Salvage Created 5416 | 132 504 232 1083 129 916 401 1392 18 609 Parts 298 | 13 31 17 62 6 43 20 74 1 31 Haulers Intercepted 2 | . . . 1 . . . 1 . . Recyclers Shooed 2 | 1 . . . . . 1 . . . Parts Field Recycled . | . . . . . . . . . . Retrieved Matter . | . . . . . . . . . . Parts Self-Destructed . | . . . . . . . . . . Prevented . | . . . . . . . . . . Kills | -11 -10 -10 -9 -9 -8 -7 -6 -5 -4 ------- Run | Scr Mat Min Mat Min Mat Fac Fac Fac Fac Combat Hostiles Destroyed 106 | . 12 8 22 3 18 11 20 . 12 Guns 97 | . 12 8 22 3 14 11 20 . 7 AOE 9 | . . . . . 4 . . . 5 Classes Destroyed 15 | 2 5 . 4 . 2 1 1 . . Worker 4 | . 1 . . . . 1 2 . . Builder 2 | . . . . . . . 2 . . Tunneler 4 | 3 . . 1 . . . . . . Hauler 2 | . . . 1 . . . 1 . . Recycler 2 | 1 . . . . . . 1 . . Operator 2 | . 1 . . . . . . 1 . Watcher 7 | . 1 . 2 . 2 . 2 . . Swarmer 17 | . 3 3 3 . . 3 3 . 2 Grunt 60 | . 9 5 10 2 14 2 11 . 7 Brawler 2 | . . . 1 1 . . . . . Duelist 1 | . . . 1 . . . . . . Sentry 15 | . . . 8 . 2 3 2 . . Hunter 7 | . . . . . 1 2 2 . 2 Programmer 2 | . . . . . . 1 1 . . Heavy 3 | . . . . . 1 . 1 . 1 Thug 1 | . . . . . . . . . 1 Best Kill Streak 7 | 3 7 4 6 2 7 3 7 1 7 Combat Bots Only 7 | . 7 4 6 2 7 3 4 . 7 Max Kills in Single Turn 3 | 2 1 1 2 1 3 1 2 1 3 Gunslinging 1 | . . . 1 . . . . . . Exploded 3 | . . . . . 3 . . . 3 Melee . | . . . . . . . . . . Uniques/NPCs Destroyed . | . . . . . . . . . . Combat | -11 -10 -10 -9 -9 -8 -7 -6 -5 -4 -------- Run | Scr Mat Min Mat Min Mat Fac Fac Fac Fac Damage Taken 12577 | . 755 751 861 55 1687 816 2931 . 4721 Core 1913 | . 96 88 38 . 144 55 306 . 1186 Absorbed by Shields 504 | . . . . . . 286 218 . . Reduced by Siege Mode 323 | . . . . . . . . . 323 Core Remaining (%) 77 | 100 . 26 . 90 73 92 64 100 . Volleys Fired 383 | 8 62 29 58 8 58 46 82 1 31 Largest 3 | 2 2 2 2 2 2 2 3 3 3 Hottest 91 | 40 63 46 50 50 50 53 90 90 91 Shots Fired 824 | 16 114 58 116 16 112 92 223 3 74 Gun 814 | 16 114 58 116 16 108 92 223 3 68 Cannon . | . . . . . . . . . . Launcher 10 | . . . . . 4 . . . 6 Special . | . . . . . . . . . . Kinetic 804 | 16 104 58 116 16 108 92 223 3 68 Thermal . | . . . . . . . . . . Explosive 10 | . . . . . 4 . . . 6 Electromagnetic 10 | . 10 . . . . . . . . Robot Hit Streak 32 | 3 9 6 15 9 30 32 12 3 22 Robot Miss Streak 5 | 1 4 3 5 1 2 5 4 . 3 Penetration Max 1 | . . . . . . . 1 . 1 Secondary Targets 29 | . 4 2 7 1 5 1 6 . 3 Max Gunslinging Chain 1 | . 1 1 1 1 1 1 1 . 1 Shots Hit Robots 600 | 9 71 43 83 13 87 72 159 1 62 Core Hits 314 | 6 30 16 40 4 45 59 66 1 47 Critical Kills 4 | . 1 . 1 . . . 2 . . Critical Parts Destroyed 5 | . . . 1 . 1 . 3 . . Critical Strikes 9 | . 1 . 2 . 1 . 5 . . Destroy 9 | . 1 . 2 . 1 . 5 . . Melee Attacks . | . . . . . . . . . . Impact . | . . . . . . . . . . Slashing . | . . . . . . . . . . Piercing . | . . . . . . . . . . Sneak Attacks . | . . . . . . . . . . Combat Hostiles . | . . . . . . . . . . Follow-up Attacks . | . . . . . . . . . . Damage Inflicted 12367 | 80 723 621 1308 227 2119 1259 3499 24 2507 Guns 10522 | 80 723 621 1308 227 1472 1259 3499 24 1309 Cannons . | . . . . . . . . . . Explosions 1839 | . . . . . 647 . . . 1192 Melee . | . . . . . . . . . . Ramming 6 | . . . . . . . . . 6 Kinetic 10435 | 80 636 621 1308 227 1472 1259 3499 24 1309 Thermal 440 | . . . . . . . . . 440 Explosive 1399 | . . . . . 647 . . . 752 Electromagnetic 87 | . 87 . . . . . . . . Impact . | . . . . . . . . . . Slashing . | . . . . . . . . . . Piercing . | . . . . . . . . . . Highest Corruption 4 | . . . . . . 4 1 . 2 Average Corruption 1 | . . . . . . 2 1 . 2 Corruption Purged . | . . . . . . . . . . Effects 2 | . . . . . . . 2 . . Message Errors 1 | . . . . . . . 1 . . Energy Discharges 1 | . . . . . . . 1 . . Overload Shots . | . . . . . . . . . . Overflow Damage 27 | . . . . . 1 . . . 26 Projectiles . | . . . . . . . . . . Explosions 27 | . . . . . 1 . . . 26 Melee . | . . . . . . . . . . Knockbacks . | . . . . . . . . . . Impact . | . . . . . . . . . . Kinetic . | . . . . . . . . . . Secondary . | . . . . . . . . . . Self-Inflicted Damage 218 | . . . . . . . . . 218 Shots 2 | . . . . . . . . . 2 Rammed . | . . . . . . . . . . Targets Rammed . | . . . . . . . . . . Kicked . | . . . . . . . . . . Crushed . | . . . . . . . . . . Highest Temperature 281 | . 96 276 12 29 155 47 281 . 50 Average Temperature 61 | . 33 156 4 14 44 16 107 . 12 Received Heat Transfer 3305 | . 351 402 216 18 711 174 790 . 643 Effects 5 | . . 1 . . . . 4 . . Energy Bleed 1 | . . 1 . . . . . . . Interference 4 | . . . . . . . 4 . . Siege Activations 2 | . . . . . . . . . 2 Total Turns 52 | . . . . . . . . . 52 Longest Duration 34 | . . . . . . . . . 34 Robots Corrupted . | . . . . . . . . . . Combat Hostiles . | . . . . . . . . . . Parts Fried . | . . . . . . . . . . Impact Corruptions . | . . . . . . . . . . Robots Melted . | . . . . . . . . . . Combat Hostiles . | . . . . . . . . . . Parts Melted . | . . . . . . . . . . Heat Transferred 250 | . . . . . . . . . 250 Parts Sabotaged . | . . . . . . . . . . Parts Stolen . | . . . . . . . . . . Parts Stripped . | . . . . . . . . . . Power Chain Reactions . | . . . . . . . . . . Missiles Intercepted . | . . . . . . . . . . Alert | -11 -10 -10 -9 -9 -8 -7 -6 -5 -4 ------- Run | Scr Mat Min Mat Min Mat Fac Fac Fac Fac Peak Influence 894 | 20 276 216 438 187 444 894 490 169 283 Initial 364 | . 13 3 . 117 . 201 364 163 82 Average 221 | 6 102 94 252 91 249 373 379 167 111 Maximum Alert Level 3 | . 1 1 2 . 2 3 2 . 1 Low Security (%) 49 | 100 77 91 38 100 22 15 . 100 93 Level 1 37 | . 22 8 34 . 69 59 73 . 6 Level 2 10 | . . . 26 . 8 . 26 . . Level 3 2 | . . . . . . 24 . . . Level 4 . | . . . . . . . . . . Level 5 . | . . . . . . . . . . High Security . | . . . . . . . . . . Max Security . | . . . . . . . . . . Squads Dispatched 28 | . 2 . 2 . 5 8 5 1 5 Investigation 5 | . . . 1 . 1 2 . . 1 Extermination 3 | . . . . . . 1 1 . 1 Reinforcement 15 | . 2 . 1 . 4 1 3 1 3 Assault 2 | . . . . . . 1 1 . . Garrison 3 | . . . . . . 3 . . . Intercept . | . . . . . . . . . . Construction Impeded 1 | . . . . . . . 1 . . Haulers Reinforced 3 | . . . . . 1 . 1 . 1 Active Scanning Responses . | . . . . . . . . . . Cargo Convoy Interrupts 1 | . . . . . . 1 . . . Stealth | -11 -10 -10 -9 -9 -8 -7 -6 -5 -4 --------- Run | Scr Mat Min Mat Min Mat Fac Fac Fac Fac Distress Signals 10 | . 1 . 4 . 2 . 3 . . Communications Jammed . | . . . . . . . . . . Distress Signals . | . . . . . . . . . . Times Spotted 171 | . 23 13 27 3 31 12 33 1 28 Peak Tracking Total 19 | . 4 4 5 3 8 3 7 1 19 Tactical Retreats 5 | . . . . . 2 . 1 . 2 Traps | -11 -10 -10 -9 -9 -8 -7 -6 -5 -4 ------- Run | Scr Mat Min Mat Min Mat Fac Fac Fac Fac Traps Triggered 6 | . . . . . 1 2 3 . . Indirectly . | . . . . . . . . . . Trap Hack Attempts . | . . . . . . . . . . Triggered . | . . . . . . . . . . Disarmed . | . . . . . . . . . . Reprogrammed . | . . . . . . . . . . Reused . | . . . . . . . . . . Traps Extracted . | . . . . . . . . . . Installed . | . . . . . . . . . . Triggered 1 | . . . . . . 1 . . . Machines | -11 -10 -10 -9 -9 -8 -7 -6 -5 -4 ---------- Run | Scr Mat Min Mat Min Mat Fac Fac Fac Fac Machines Disabled 11 | . 1 1 2 . 2 . 1 . 4 Max in Single Turn 4 | . 1 . 1 . 1 . 1 . 4 Garrison Access 1 | . . . . . 1 . . . . Machines Sabotaged . | . . . . . . . . . . Garrisons Compromised 1 | . . . . . . 1 . . . Overloaded Fab Kills . | . . . . . . . . . . Fab Network Shutdowns . | . . . . . . . . . . Hacking | -11 -10 -10 -9 -9 -8 -7 -6 -5 -4 --------- Run | Scr Mat Min Mat Min Mat Fac Fac Fac Fac Machines Accessed 19 | . 4 . 4 . 5 2 3 . 1 Terminals 14 | . 4 . 4 . 4 . 2 . . Fabricators 1 | . . . . . . . 1 . . Repair Stations 1 | . . . . . . . . . 1 Recycling Units . | . . . . . . . . . . Scanalyzers 1 | . . . . . . 1 . . . Garrison Access 2 | . . . . . 1 1 . . . Total Hacks 60 | . 17 . 15 . 13 5 8 . 2 Successful 29 | . 10 . 7 . 6 3 3 . . Failed 31 | . 7 . 8 . 7 2 5 . 2 Catastrophic 4 | . . . 1 . 1 1 1 . . Database Lockouts . | . . . . . . . . . . Manual 45 | . 13 . 15 . 10 . 7 . . Terminals 47 | . 17 . 15 . 10 . 5 . . Fabricators 3 | . . . . . . . 3 . . Repair Stations 2 | . . . . . . . . . 2 Recycling Units . | . . . . . . . . . . Scanalyzers 3 | . . . . . . 3 . . . Garrison Access 5 | . . . . . 3 2 . . . Terminal Hacks 9 | . 5 . 1 . 2 . 1 . . Robot Analysis 4 | . 2 . 1 . 1 . . . . Prototype ID Bank 1 | . 1 . . . . . . . . Branch Access Points 1 | . . . . . 1 . . . . Unreport Threat 2 | . 1 . . . . . 1 . . Hauler Manifests 1 | . 1 . . . . . . . . Fabricator Hacks . | . . . . . . . . . . Repair Station Hacks . | . . . . . . . . . . Recycling Unit Hacks . | . . . . . . . . . . Scanalyzer 3 | . . . . . . 3 . . . Insert Component 1 | . . . . . . 1 . . . Analyze 2 | . . . . . . 2 . . . Garrison Access Hacks 1 | . . . . . 1 . . . . Seal Access 1 | . . . . . 1 . . . . Unauthorized Hacks 16 | . 5 . 6 . 3 . 2 . . Terminals 14 | . 5 . 6 . 3 . . . . Track 2 | . 1 . 1 . . . . . . Assimilate 2 | . 1 . 1 . . . . . . Botnet 8 | . 3 . 3 . 2 . . . . Operators 2 | . . . 1 . 1 . . . . Fabricators 2 | . . . . . . . 2 . . Report 1 | . . . . . . . 1 . . Haulers 1 | . . . . . . . 1 . . Repair Stations . | . . . . . . . . . . Recycling Units . | . . . . . . . . . . Scanalyzers . | . . . . . . . . . . Garrison Access . | . . . . . . . . . . Data Cores Recovered . | . . . . . . . . . . Used . | . . . . . . . . . . Hacking Detections 18 | . 4 . 4 . 5 1 3 . 1 Full Trace Events 4 | . . . 1 . 1 1 . . 1 Feedback Events 1 | . . . . . . 1 . . . Corruption 1 | . . . . . . 1 . . . Feedback Blocked . | . . . . . . . . . . Robot Schematics Acquired . | . . . . . . . . . . Robots Built . | . . . . . . . . . . Matter . | . . . . . . . . . . Time . | . . . . . . . . . . Total Robot Build Rating . | . . . . . . . . . . Part Schematics Acquired 1 | . . . . . . 1 . . . Parts Built . | . . . . . . . . . . Matter . | . . . . . . . . . . Time . | . . . . . . . . . . Total Part Build Rating . | . . . . . . . . . . Parts Repaired . | . . . . . . . . . . Time . | . . . . . . . . . . Parts Recycled . | . . . . . . . . . . Recycled Matter . | . . . . . . . . . . Retrieved Matter . | . . . . . . . . . . Retrieved Components . | . . . . . . . . . . Parts Scanalyzed 1 | . . . . . . 1 . . . Part Schematics Acquired 1 | . . . . . . 1 . . . Parts Damaged . | . . . . . . . . . . Bothacking | -11 -10 -10 -9 -9 -8 -7 -6 -5 -4 ------------ Run | Scr Mat Min Mat Min Mat Fac Fac Fac Fac Used RIF Installer . | . . . . . . . . . . Robots Hacked . | . . . . . . . . . . Non-combat . | . . . . . . . . . . Combat . | . . . . . . . . . . Robot Hacks Applied . | . . . . . . . . . . Relay Couplers Released . | . . . . . . . . . . Robots Rewired . | . . . . . . . . . . Allies Hacked . | . . . . . . . . . . Hacks Repelled . | . . . . . . . . . . Allies | -11 -10 -10 -9 -9 -8 -7 -6 -5 -4 -------- Run | Scr Mat Min Mat Min Mat Fac Fac Fac Fac Total Allies 27 | . 1 3 . 2 . 18 3 . . Largest Group 16 | . 1 3 3 2 2 16 3 3 3 Highest-Rated Group 658 | . 10 40 40 41 41 658 93 93 93 Highest-Rated Ally 74 | . 10 16 16 31 31 74 31 31 31 Total Orders . | . . . . . . . . . . Ally Attacks 122 | . . 12 10 . 24 37 32 1 6 Total Damage 2016 | . . 146 60 . 440 806 462 20 82 Kills 22 | . . 4 3 . 3 9 3 . . Allies Corrupted . | . . . . . . . . . . Allies Melted . | . . . . . . . . . . Intel | -11 -10 -10 -9 -9 -8 -7 -6 -5 -4 ------- Run | Scr Mat Min Mat Min Mat Fac Fac Fac Fac Robot Analysis Total 4 | . 2 . 1 . 1 . . . . Derelict Logs Recovered 3 | . . 1 . 2 . . . . . Drone Launches . | . . . . . . . . . . Drone Recoveries . | . . . . . . . . . . Exploration | -11 -10 -10 -9 -9 -8 -7 -6 -5 -4 ------------- Run | Scr Mat Min Mat Min Mat Fac Fac Fac Fac Turns Passed 7385 | 126 1051 898 1278 636 694 861 1315 192 334 Spaces Moved 3368 | 55 538 489 494 236 315 456 498 103 184 Core 82 | 2 . . . . . . . . 80 Treads 3034 | 53 538 489 494 236 315 456 291 58 104 Legs 252 | . . . . . . . 207 45 . Wheels . | . . . . . . . . . . Hover . | . . . . . . . . . . Flight . | . . . . . . . . . . Fastest Speed 50 | 50 160 160 160 260 155 158 162 160 50 Average Speed 180 | 156 160 160 216 260 158 159 212 177 112 Slowest Speed 460 | 160 160 160 260 260 160 162 460 200 200 Overloaded Moves . | . . . . . . . . . . Propulsion Burnouts . | . . . . . . . . . . Robots Hopped . | . . . . . . . . . . Cave-ins Triggered . | . . . . . . . . . . Exploration Rate (%) 39 | 5 86 97 60 68 35 13 19 2 7 Regions Visited 9 Branch Regions 2 Pre-discovered Areas 1 | . . . . 1 . . . . . Known Exits Taken 1 | . . 1 . . . . . . . Unknown Exits Taken 8 | 1 1 . 1 1 1 1 1 1 . Scrap Searched 5 | . . 3 . 2 . . . . . Spaces Dug . | . . . . . . . . . . Terrain Destroyed 47 | . . . . . 14 . . . 33 Melee . | . . . . . . . . . . Projectile 1 | . . . . . . . . . 1 AOE 46 | . . . . . 14 . . . 32 Terrain Rammed 3 | . . . . . . . . . 3 Walls Destroyed . | . . . . . . . . . . Machines Disabled 1 | . . . . . . . . . 1 Actions | -11 -10 -10 -9 -9 -8 -7 -6 -5 -4 --------- Run | Scr Mat Min Mat Min Mat Fac Fac Fac Fac Total 4051 | 80 631 545 594 250 427 522 634 112 256 Wait 62 | 4 4 11 3 . 11 6 6 4 13 Move 3359 | 54 537 488 493 235 314 455 497 102 184 Hop . | . . . . . . . . . . Pick Up 69 | 8 10 2 13 3 14 4 11 1 3 Fast Attach 41 | 6 6 1 6 . 3 2 6 2 9 Attach 42 | . 2 3 2 . 9 3 16 . 7 Detach 2 | . 1 . . . . . . . 1 Swap 36 | . 2 7 6 1 7 1 11 . 1 Drop 54 | . 7 4 13 3 11 5 5 2 4 Fire 383 | 8 62 29 58 8 58 46 82 1 31 Melee . | . . . . . . . . . . Ram 3 | . . . . . . . . . 3 Kick . | . . . . . . . . . . Crush . | . . . . . . . . . . Escape Stasis . | . . . . . . . . . . Rewire . | . . . . . . . . . . Trap . | . . . . . . . . . . Miscellaneous . | . . . . . . . . . . Route ------- -11/Scrapyard -10/Materials (discovered 5 exits: *Mat x3 / [*Min x2]) -10/Mines -9/Materials (discovered 4 exits: *Mat x2 / [*Min] / [*Sto]) -9/Mines (discovered 2 exits: *Mat x2) -8/Materials -7/Factory -6/Factory -5/Factory -4/Factory History --------- Turn | Location | Event 46 | -11/Scrapyard | Discovered new exit (range 15) 127 | -11/Scrapyard | Entered Materials 312 | -10/Materials | Destroyed 7 combat bots 328 | -10/Materials | Build established: Mutant 447 | -10/Materials | Discovered new exit (range 15) 556 | -10/Materials | Discovered new exit (range 15) 828 | -10/Materials | Discovered new exit (range 12) 1047 | -10/Materials | Discovered new exit (range 11) 1137 | -10/Materials | Discovered new exit (range 15) 1178 | -10/Materials | Entered Mines 1178 | -10/Mines | Accompanied by 1 ally 1256 | -10/Mines | Core integrity fell below 50% 1427 | -10/Mines | Identified exit to Materials 1446 | -10/Mines | Assisted by bots powering up and referring to "LRC-V3" 1632 | -10/Mines | Joined a pair of Derelicts in attacking an 0b10 outpost 2076 | -10/Mines | Entered Materials 2076 | -9/Materials | Accompanied by 3 allies 2076 | -9/Materials | Evolved 2 slots: Utility x2 2413 | -9/Materials | Discovered new exit (range 16) 2561 | -9/Materials | Discovered new exit (range 16) 2932 | -9/Materials | Discovered new exit (range 14) 3265 | -9/Materials | Discovered new exit (range 16) 3354 | -9/Materials | Entered Mines 3361 | -9/Mines | Received a Rocket Launcher from a helpful Derelict 3569 | -9/Mines | Discovered new exit (range 7) 3751 | -9/Mines | Learned Materials emergency access door positions 3787 | -9/Mines | Discovered new exit (range 14) 3805 | -9/Mines | Learned location of Storage (-9) 3990 | -9/Mines | Entered Materials 3990 | -8/Materials | Accompanied by 2 allies 3990 | -8/Materials | Evolved 2 slots: Propulsion x2 3995 | -8/Materials | Led the pair of lost Derelicts to an unsafe place 4421 | -8/Materials | Lost 8 parts (2p4n1u1w) 4427 | -8/Materials | Destroyed 7 combat bots 4651 | -8/Materials | Discovered new exit (range 4) 4684 | -8/Materials | Entered Factory 4684 | -7/Factory | Evolved 2 slots: Utility x2 5140 | -7/Factory | Build established: Scavenger-Mutant 5180 | -7/Factory | Garrison activated, responded to threat 5335 | -7/Factory | Cargo convoy interrupted 5416 | -7/Factory | Discovered new exit (range 8) 5484 | -7/Factory | First assault squad dispatched 5545 | -7/Factory | Entered another Factory area 5545 | -6/Factory | Evolved 2 slots: Utility x1, Weapon x1 5844 | -6/Factory | Build established: Scavenger-Tank 6167 | -6/Factory | Lost 11 parts (1p1n6u3w) 6245 | -6/Factory | First assault squad dispatched 6406 | -6/Factory | Lost 5 parts (3n1u1w) 6423 | -6/Factory | Allied Derelicts emerged from ambush trap array 6602 | -6/Factory | Discovered new exit (range 13) 6860 | -6/Factory | Entered another Factory area 6860 | -5/Factory | Accompanied by 3 allies 6860 | -5/Factory | Evolved 2 slots: Propulsion x2 7037 | -5/Factory | Discovered new exit (range 8) 7052 | -5/Factory | Entered another Factory area 7052 | -4/Factory | Accompanied by 3 allies 7052 | -4/Factory | Evolved 2 slots: Utility x2 7113 | -4/Factory | Found Quantum Capacitor 7233 | -4/Factory | Found Prototype Processor 7233 | -4/Factory | Identified Exp. Signal Interpreter 7319 | -4/Factory | Released all parts (10) 7333 | -4/Factory | Destroyed 7 combat bots 7349 | -4/Factory | Lost 10 parts (3n4u3w) 7356 | -4/Factory | Core integrity fell below 50% 7386 | -4/Factory | Core integrity fell below 20% 7386 | -4/Factory | Destroyed self via exploding Power Conduit Last Messages --------------- 07381_ Railgun temporarily disabled. 07381_ Gauss Rifle temporarily disabled. 07381_ Gauss Rifle permanently disabled. 07381_ Destabilizing: Short circuit. 07383_ Slammed into Power Conduit. 07383_ Destabilizing: System corrupted (+2). 07384_ Broken Gauss Rifle destroyed. 07385_ Critical hit (Burn: +50). 07386_ Adv. Targeting Computer severed. 07386_ Slammed into Power Conduit. 07386_ Power Conduit explodes. 07386_ Destabilizing: System corrupted (+1). 07386_ Destabilizing: System corrupted (+2). 07386_ Power Conduit explodes. 07386_ G-67 Veteran destroyed. 07386_ S-27 Virus destroyed. 07386_ G-67 Veteran destroyed. 07386_ Power Conduit explodes. 07386_ Repair Station disabled. 07386_ Destroyed Lgt. Nuclear Core. Map ----- +----------------------------------------------------+ | ???????????????????????????????????????????????? | | ???????????????????????????????????????????????? | | ???????????????????????????????????????????????? | | ???????????????????????????????????????????????? | | ???????????????????????????????????????????????? | | ???????????????????????????????????????????????? | | ???????????????????????????????????????????????? | | ???????????????????????????????????????????????? | | ???????????????????????????????????????????????? | | ???????????????????????????????????????????????? | | ???????????????????????????????????????????????? | | ???????????????????????????????????????????????? | | ???????????????????????????????????????????????? | | ???????????????????????????????????????????????? | | ???????????????????????????????????????????????? | | ???????????????????????????????????????????????? | | ???????????????????????????????????????????????? | | ???????????????????????????????????????????????? | | ???????????????????????????????????????????????? | | ???????????????????????????????????????????????? | | ??????????????????###########??????????????????? | | ?????????????????##;;;;;;;;;###????????????????? | | ?????????????????# ! #????????????????? | | ?????????????????# [% #????????????????? | | ?????????????????# [ [% #????????????????? | | ?????????????????# @ [ #?????""?????????? | | ?????????????????# l #?????""?????????? | | ?????????????????# s % #????? #????????? | | ?????????????????# #?????" #????????? | | ?????????????????# #?????" #????????? | | ?????????????????# "R== h ## """ #????????? | | ?????????????????# """s g #?? "" #????????? | | ?????????????????# ""*m #??? "" #????????? | | ?????????????????# g h #???? #????????? | | ?????????????##########;/############+########## | | ?????????????? # h | | ????????????? """" # | | ?????????????! """" # | | ????????????? """" + | | ?????????????? """" # g | | ??????????????? """" # ##########+########## | | ??????????????? """" # #??????? ???????# | | ??????????????? # #?????# ?????# | | ???????????????####### #?????# ???# | | ?????????????????????# #?????# !!* ?# | | ?????????????????????# #?????# !! ## | | ?????????????????????# #?????# !! ## | | ?????????????????????# #?????############### | | ?????????????????????# #???????????????????# | | ?????????????????????# #???????????????##### | +----------------------------------------------------+ Best States ------------- Heat Dissipation 65 Energy Generation 19 Energy Capacity 500 Matter Stores 300 Matter Capacity 600 Sight Range 20 Terrain Scan Range 16 Terrain Scan Density 10 Armor Coverage 600 Weapon Cycling 15 Melee Speed Boost 20 Evasion (%) 50 Targeting Accuracy 12 Recoil Reduction 6 Salvage Targeting 1 Item Schematics ----------------- Imp. Deuterium Engine | -7/Factory | Scanalyzed Robot Schematics ------------------ None Fabricated ------------ Nothing Alien Tech Used ----------------- None Achievements -------------- None Challenges ------------ None Game ------ Seed DeepChargeDissipator Manual? 0 Play Time 00:56:59 Cumulative 100.4 hours Start 2021.07.20 @ 12:34:30 End 2021.07.20 @ 13:36:12 Sessions 1 Manual Loads 0 Difficulty Rogue Special Mode None Game No. 82 Rogue 10 Adventurer 72 Explorer 0 Win Type - Total 4 Types 2/0/1/0/0/0/0/1/0 Lore% 66 Gallery% 69 Achievement% 66 Wizard Run 0 Options --------- ASCII 0 Keyboard 0 Movement Mouse Keybinds 0 Fullscreen 1 Font 12/Smallcaps Map View 83x54 Tactical HUD 1 Map Filters NONE Filters NONE Steam 1 RUN: 724aec7a-63cf-4179-a421-da074fd1512f